bitfinex-derivatives/quotes_SOLF0:USTF0_20250716
["timestamp","ask_amount","ask_price","bid_price","bid_amount"]
[1752700689689,5.6966,175.47,175.43,9.78550549]
[1752700689992,3.13,175.46,175.43,9.78550549]
[1752700690693,8.8267,175.46,175.43,9.78550549]
[1752700691090,8.8267,175.46,175.44,171.5]
[1752700691291,3.13,175.46,175.44,177.1974]
[1752700691792,3.13,175.46,175.44,171.5]
[1752700692090,3.13,175.5,175.45,4.08907762]
[1752700692292,3.13,175.49,175.47,4.08907762]
[1752700693592,3.13,175.48,175.43,171.48]
[1752700694186,3.13,175.48,175.4,4.08946038]
[1752700694386,3.13,175.44,175.35,178.04300345]
[1752700694589,15.78818473,175.44,175.36,175.54946038]
[1752700694787,12.65818473,175.44,175.36,181.24916038]
[1752700694993,3.13,175.43,175.36,175.54946038]
[1752700695191,3.13,175.43,175.38,4.08946038]
[1752700695496,5.6982,175.42,175.38,9.78876038]
[1752700695693,3.13,175.39,175.38,4.08946038]
[1752700696993,3.13,175.39,175.36,4.08946038]
[1752700697188,3.13,175.38,175.36,175.54946038]
[1752700697792,3.13,175.38,175.37,5.6996]
[1752700698097,3.13,175.38,175.36,175.54946038]
[1752700698302,3.13,175.38,175.36,181.24936038]
[1752700698994,3.13,175.37,175.36,175.54946038]
[1752700700799,3.13,175.37,175.36,181.24946038]
[1752700701003,5.6991,175.39,175.36,181.24946038]
[1752700701190,3.13,175.38,175.36,175.54946038]
[1752700701500,3.13,175.37,175.36,171.46]
[1752700701697,4.08946038,175.43,175.36,171.44]
[1752700702095,4.08946038,175.43,175.35,178.04300345]
[1752700702402,8.8296,175.38,175.37,171.44]
[1752700703298,3.13,175.38,175.37,171.44]
[1752700704495,3.13,175.38,175.25,239.0]
[1752700704804,3.13,175.35,175.27,4.08946038]
[1752700705295,3.13,175.31,175.27,4.08946038]
[1752700706204,3.13,175.3,175.27,4.08946038]
[1752700706403,3.13,175.29,175.27,4.08946038]
[1752700706999,4.08946038,175.36,175.27,4.08946038]
[1752700707203,3.13,175.3,175.27,4.08946038]
[1752700707698,3.13,175.29,175.27,4.08946038]
[1752700708097,8.8323,175.29,175.27,4.08946038]
[1752700708302,4.08946038,175.37,175.27,4.08946038]
[1752700708494,4.09642186,175.38,175.29,4.09642186]
[1752700708698,3.13,175.33,175.3,171.42]
[1752700708892,4.09642186,175.39,175.3,171.42]
[1752700709099,8.8316,175.32,175.3,171.42]
[1752700709706,5.7016,175.31,175.3,171.42]
[1752700710302,4.09642186,175.39,175.26,239.0]
[1752700710509,3.13,175.34,175.25,4.09642186]
[1752700710803,3.13,175.34,175.26,171.4]
[1752700711105,4.09642186,175.35,175.26,171.4]
[1752700711106,8.833,175.27,175.26,171.4]
[1752700712599,5.7035,175.26,175.25,171.4]
[1752700712795,8.8335,175.26,175.25,171.4]
[1752700713694,6.67948069,175.31,175.2,239.0]
[1752700713902,22.5022116,175.45,175.21,171.38]
[1752700713903,3.24,175.28,175.21,171.38]
[1752700714405,8.9444,175.23,175.21,171.38]
[1752700715016,6.67948069,175.27,175.18,737.91948069]
[1752700715221,3.24,175.26,175.19,171.4]
[1752700715624,5.7052,175.2,175.19,171.4]
[1752700715829,8.9452,175.2,175.19,171.4]
[1752700716027,3.24,175.33,175.19,171.4]
[1752700716216,3.24,175.33,175.23,6.67948069]
[1752700716417,3.24,175.33,175.25,6.67948069]
[1752700718129,5.7032,175.27,175.25,6.67948069]
[1752700718325,8.9432,175.27,175.25,6.67948069]
[1752700718532,3.24,175.27,175.25,6.67948069]
[1752700719424,6.67764014,175.36,175.25,6.67764014]
[1752700719625,3.24,175.26,175.25,6.67764014]
[1752700720523,8.9432,175.26,175.25,6.67764014]
[1752700720721,3.24,175.26,175.24,171.38]
[1752700720923,3.24,175.26,175.21,171.38]
[1752700721127,8.9448,175.22,175.21,171.38]
[1752700721831,3.24,175.22,175.21,171.38]
[1752700722035,5.7043,175.23,175.21,171.38]
[1752700722335,3.24,175.23,175.22,6.68251386]
[1752700722530,3.24,175.37,175.22,6.68251386]
[1752700722733,3.24,175.37,175.27,6.68251386]
[1752700723035,8.9426,175.28,175.27,178.04251386]
[1752700723236,8.9426,175.28,175.27,171.36]
[1752700727438,8.9439,175.24,175.23,178.02251386]
[1752700727636,6.68251386,175.34,175.23,178.02251386]
[1752700727832,8.9438,175.25,175.23,178.02251386]
[1752700730739,5.7038,175.25,175.23,178.02251386]
[1752700731642,5.7039,175.24,175.23,178.02251386]
[1752700732142,14.6402,175.36,175.23,178.02251386]
[1752700732341,14.6402,175.36,175.25,6.68251386]
[1752700732342,3.24,175.35,175.25,6.68251386]
[1752700732539,3.24,175.35,175.27,6.68251386]
[1752700732850,5.7026,175.28,175.27,6.68251386]
[1752700733047,4.097653,175.35,175.27,4.097653]
[1752700733243,5.7026,175.28,175.27,4.097653]
[1752700733434,8.9426,175.28,175.27,4.097653]
[1752700734545,5.7034,175.26,175.25,4.097653]
[1752700734741,3.24,175.25,175.23,414.437653]
[1752700734947,3.24,175.24,175.23,175.437653]
[1752700735245,8.9439,175.24,175.23,175.437653]
[1752700735444,8.9439,175.24,175.23,171.34]
[1752700737543,6.68296415,175.28,175.18,492.24]
[1752700737741,3.24,175.27,175.19,171.24]
[1752700738140,3.24,175.2,175.19,171.24]
[1752700738350,3.24,175.23,175.19,177.92296415]
[1752700738547,3.24,175.24,175.22,6.68296415]
[1752700738746,3.24,175.33,175.23,171.24]
[1752700738943,3.24,175.33,175.24,6.68296415]
[1752700739644,3.24,175.33,175.26,6.68296415]
[1752700740143,5.7029,175.28,175.26,6.68296415]
[1752700740350,3.24,175.29,175.26,6.68296415]
[1752700740553,3.24,175.29,175.28,6.68296415]
[1752700740951,3.24,175.39,175.28,177.90296415]
[1752700741146,3.24,175.39,175.3,6.68296415]
[1752700741348,3.24,175.39,175.23,6.68296415]
[1752700741546,3.24,175.39,175.28,6.68296415]
[1752700741547,5.7014,175.32,175.28,6.68296415]
[1752700741754,3.24,175.39,175.3,6.68296415]
[1752700742053,3.24,175.39,175.31,171.2]
[1752700743653,9.92296415,175.39,175.31,171.2]
[1752700743855,3.37,175.36,175.31,171.2]
[1752700744054,5.7022,175.3,175.27,171.18]
[1752700744256,3.37,175.28,175.27,171.18]
[1752700745153,9.0726,175.28,175.27,171.18]
[1752700745759,9.0726,175.28,175.25,6.68296415]
[1752700745957,3.37,175.27,175.26,171.14]
[1752700746255,9.0724,175.29,175.26,171.14]
[1752700746454,3.37,175.28,175.26,171.14]
[1752700747051,3.37,175.28,175.26,177.82296415]
[1752700747948,3.37,175.27,175.26,171.14]
[1752700748155,3.37,175.26,175.25,6.68296415]
[1752700748354,3.37,175.26,175.25,177.82296415]
[1752700748950,3.37,175.26,175.25,171.14]
[1752700749152,9.0732,175.26,175.25,171.14]
[1752700749454,3.37,175.26,175.24,171.12]
[1752700749655,3.37,175.26,175.21,444.698195]
[1752700749954,3.37,175.26,175.22,171.1]
[1752700750352,5.7041,175.24,175.22,171.1]
[1752700750558,3.37,175.23,175.22,171.1]
[1752700752059,9.0742,175.23,175.22,171.1]
[1752700753252,3.37,175.23,175.22,171.1]
[1752700753455,3.37,175.29,175.22,171.1]
[1752700753657,3.37,175.29,175.24,6.68296415]
[1752700754163,3.37,175.3,175.24,6.68296415]
[1752700754555,3.37,175.28,175.24,6.68296415]
[1752700754962,3.37,175.3,175.24,6.68296415]
[1752700755454,5.7031,175.27,175.24,6.68296415]
[1752700755655,3.37,175.29,175.26,6.68296415]
[1752700755963,3.37,175.29,175.27,171.06]
[1752700756355,3.37,175.29,175.28,6.68296415]
[1752700758662,9.0723,175.29,175.28,6.68296415]
[1752700758863,3.37,175.29,175.27,171.06]
[1752700759552,9.0726,175.28,175.27,171.06]
[1752700760264,3.37,175.28,175.26,171.02]
[1752700760764,9.0731,175.27,175.26,171.02]
[1752700764262,3.37,175.27,175.22,4.09910334]
[1752700764464,3.37,175.27,175.23,170.98]
[1752700765062,5.7039,175.24,175.23,170.98]
[1752700765264,9.0739,175.24,175.23,170.98]
[1752700774988,3.37,175.24,175.23,170.98]
[1752700776096,9.0739,175.24,175.23,170.98]
[1752700782505,3.37,175.24,175.23,170.98]
[1752700782705,3.37,175.24,175.23,170.82]
[1752700784602,3.37,175.24,175.23,4.09950548]
[1752700784901,3.37,175.24,175.23,174.91950548]
[1752700787113,3.23,175.29,175.23,174.91950548]
[1752700787606,3.23,175.26,175.25,4.09950548]
[1752700787804,3.23,175.26,175.25,174.85950548]
[1752700789209,3.23,175.26,175.25,180.56310548]
[1752700789410,5.7027,175.28,175.25,180.56310548]
[1752700789711,3.23,175.29,175.27,4.09950548]
[1752700789912,12.7730749,175.32,175.27,4.09950548]
[1752700790107,3.23,175.28,175.27,4.09950548]
[1752700790308,3.23,175.28,175.27,174.83950548]
[1752700791211,3.23,175.29,175.27,180.54240548]
[1752700791713,8.9323,175.29,175.27,180.54240548]
[1752700792218,3.23,175.28,175.27,180.54240548]
[1752700792717,3.23,175.28,175.23,239.0]
[1752700792919,3.23,175.28,175.24,170.7]
[1752700793311,5.7031,175.27,175.24,176.4037]
[1752700793508,3.23,175.25,175.23,4.09950548]
[1752700793709,3.23,175.3,175.24,170.7]
[1752700794616,3.23,175.3,175.24,176.4038]
[1752700794824,3.23,175.3,175.25,4.0994221]
[1752700795010,3.23,175.3,175.24,176.4038]
[1752700795011,3.23,175.3,175.27,4.0994221]
[1752700795210,3.23,175.3,175.29,4.0994221]
[1752700795412,3.23,175.3,175.29,170.66]
[1752700796016,3.23,175.32,175.29,170.66]
[1752700796214,3.23,175.32,175.31,4.0994221]
[1752700798917,3.23,175.31,175.07,731.6]
[1752700799124,3.23,175.2,175.13,4.09738744]
[1752700799316,3.23,175.2,175.14,170.62]
[1752700799511,8.9352,175.2,175.14,170.62]
[1752700799715,3.23,175.19,175.14,170.62]
[1752700800019,5.7049,175.21,175.17,4.09738744]
[1752700800215,3.23,175.19,175.18,170.6]
[1752700800519,3.23,175.24,175.18,174.70143938]
[1752700800722,3.23,175.29,175.23,8.20287876]
[1752700801018,3.23,175.29,175.18,663.2]
[1752700801019,3.23,175.29,175.27,6.67628584]
[1752700801215,3.23,175.29,175.28,170.6]
[1752700801418,8.9323,175.29,175.28,170.6]
[1752700802623,16.00798767,175.32,175.27,170.62]
[1752700802830,3.23,175.31,175.27,170.62]
[1752700803222,5.7026,175.28,175.27,170.62]
[1752700803423,8.8026,175.28,175.27,170.62]
[1752700803619,3.1,175.32,175.27,170.62]
[1752700803825,0.04037036,175.29,175.27,170.62]
[1752700804021,3.1,175.28,175.26,170.6]
[1752700804721,0.04037036,175.29,175.26,170.6]
[1752700805038,12.81835803,175.29,175.24,170.6]
[1752700805420,8.8036,175.25,175.24,170.6]
[1752700806325,3.1,175.25,175.2,6.67628584]
[1752700806523,3.1,175.25,175.21,170.58]
[1752700807111,5.7042,175.23,175.21,170.58]
[1752700807316,8.8042,175.23,175.21,170.58]
[1752700807930,3.1,175.23,175.22,6.67628584]
[1752700809624,8.8042,175.23,175.22,6.67628584]
[1752700809816,3.1,175.23,175.21,170.58]
[1752700810020,3.1,175.22,175.21,170.58]
[1752700810834,5.7049,175.21,175.2,6.67628584]
[1752700811129,5.7049,175.21,175.2,170.58]
[1752700811130,8.8049,175.21,175.2,170.58]
[1752700811324,8.8055,175.19,175.18,492.6]
[1752700811535,3.1,175.19,175.18,170.56]
[1752700812328,8.8055,175.19,175.18,170.56]
[1752700817831,5.7055,175.19,175.18,170.56]
[1752700818135,5.7055,175.19,175.18,177.23628584]
[1752700819535,8.8055,175.19,175.18,177.23628584]
[1752700820046,5.7055,175.19,175.18,177.21628584]
[1752700820640,8.8055,175.19,175.18,177.21628584]
[1752700821339,3.1,175.19,175.18,170.54]
[1752700821837,3.1,175.19,175.1,492.7]
[1752700821838,5.7076,175.13,175.12,6.67628584]
[1752700822031,5.7076,175.13,175.12,177.21628584]
[1752700823941,5.7081,175.11,175.1,917.19405285]
[1752700824146,3.1,175.13,175.1,1094.39033869]
[1752700824332,0.04240716,175.14,175.12,6.67628584]
[1752700824528,5.7077,175.13,175.12,6.67628584]
[1752700825228,5.7077,175.13,175.12,177.19628584]
[1752700827734,8.8077,175.13,175.12,177.19628584]
[1752700829240,8.8081,175.11,175.1,738.37628584]
[1752700829444,8.8081,175.11,175.1,663.2]
[1752700830038,8.8081,175.11,175.1,492.7]
[1752700830346,8.8081,175.11,175.1,663.2]
[1752700830941,8.8081,175.11,175.1,667.30561606]
[1752700831739,8.8081,175.11,175.1,663.2]
[1752700831942,3.1,175.11,175.1,663.2]
[1752700832142,3.1,175.13,175.1,663.2]
[1752700832443,3.1,175.13,175.12,4.10561606]
[1752700832739,8.8075,175.13,175.12,174.60561606]
[1752700832941,3.1,175.13,175.1,496.80561606]
[1752700833240,3.22,175.12,175.11,170.5]
[1752700833748,8.9278,175.12,175.11,170.5]
[1752700834945,5.7078,175.12,175.11,170.5]
[1752700837537,8.9278,175.12,175.11,170.5]
[1752700845349,0.04240716,175.14,175.11,170.5]
[1752700845549,3.22,175.17,175.13,4.10561606]
[1752700845846,5.7058,175.19,175.16,4.10161213]
[1752700846046,3.22,175.21,175.18,4.10161213]
[1752700846248,3.22,175.21,175.2,4.10062757]
[1752700846447,8.9249,175.21,175.2,4.10062757]
[1752700846650,3.22,175.21,175.2,170.42]
[1752700847241,8.9249,175.21,175.2,170.42]
[1752700851068,8.9252,175.2,175.19,0.03896241]
[1752700851261,3.22,175.2,175.19,170.36]
[1752700851468,3.22,175.2,175.19,161.5659]
[1752700851664,8.9252,175.2,175.19,161.5659]
[1752700851866,3.22,175.2,175.12,4.10062757]
[1752700852168,3.22,175.18,175.13,170.36]
[1752700852366,5.7072,175.14,175.13,170.36]
[1752700852562,8.9272,175.14,175.13,170.36]
[1752700855369,3.22,175.16,175.1,496.80062757]
[1752700855670,3.22,175.16,175.13,170.34]
[1752700855871,5.7072,175.14,175.13,170.34]
[1752700856070,8.9272,175.14,175.13,170.34]
[1752700857666,3.22,175.12,175.1,492.7]
[1752700857971,3.22,175.12,175.11,170.32]
[1752700858569,8.9278,175.12,175.11,170.32]
[1752700858763,0.04172712,175.13,175.1,492.7]
[1752700858764,3.22,175.11,175.1,492.7]
[1752700859267,3.22,175.11,175.1,170.3]
[1752700859666,8.9281,175.11,175.1,170.3]
[1752700859870,3.22,175.12,175.1,170.3]
[1752700860475,3.22,175.12,175.06,194.25999948]
[1752700860769,3.22,175.12,175.07,170.3]
[1752700861071,5.7091,175.08,175.07,170.3]
[1752700861266,3.22,175.07,175.06,194.25999948]
[1752700861466,3.22,175.07,175.06,364.55999948]
[1752700861768,3.22,175.07,175.03,4.10062757]
[1752700861966,3.22,175.07,175.04,170.3]
[1752700862367,8.9301,175.05,175.04,170.3]
[1752700863071,8.9707,175.03,175.02,492.94]
[1752700863275,8.9707,175.03,175.02,663.24]
[1752700864763,0.03899826,175.04,175.02,667.34796085]
[1752700864975,3.26,175.08,175.05,4.10796085]
[1752700865169,3.26,175.12,175.07,4.10796085]
[1752700865369,3.26,175.12,175.08,170.3]
[1752700865773,5.7088,175.09,175.08,170.3]
[1752700865978,8.9688,175.09,175.08,174.40796085]
[1752700866175,8.9688,175.09,175.08,174.44873291]
[1752700866472,3.22103759,175.09,175.08,174.44873291]
[1752700867271,8.92983759,175.09,175.08,174.44873291]
[1752700867471,12.77798767,175.15,175.08,174.44873291]
[1752700867675,5.7081,175.11,175.1,4.10796085]
[1752700867972,12.77798767,175.19,175.11,0.05]
[1752700868181,12.77798767,175.21,175.16,4.10796085]
[1752700868386,3.26,175.22,175.18,4.10796085]
[1752700868972,3.26,175.22,175.18,4.14784351]
[1752700869481,8.9655,175.19,175.18,4.14784351]
[1752700871069,8.9655,175.19,175.18,0.03988266]
[1752700881990,8.9672,175.14,175.13,239.0]
[1752700882190,3.26,175.14,175.11,6.68563513]
[1752700882495,8.9672,175.14,175.13,170.12]
[1752700883192,3.26,175.14,175.1,499.60563513]
[1752700883393,3.26,175.14,175.12,170.12]
[1752700883587,5.7075,175.13,175.12,170.12]
[1752700883786,8.9675,175.13,175.12,170.12]
[1752700890197,5.7081,175.11,175.1,499.60563513]
[1752700890396,3.26,175.11,175.1,669.68563513]
[1752700890597,3.26,175.11,175.1,669.73563513]
[1752700890797,8.9681,175.11,175.1,669.73563513]
[1752700890997,8.9681,175.11,175.1,667.15520912]
[1752700891199,0.04059484,175.15,175.11,0.05]
[1752700891499,0.04059484,175.15,175.14,4.15520912]
[1752700891804,0.04059484,175.15,175.14,174.23520912]
[1752700891998,5.74739484,175.15,175.14,174.23520912]
[1752700892601,3.26,175.21,175.15,0.05]
[1752700892801,3.26,175.21,175.18,4.10520912]
[1752700893001,3.26,175.21,175.18,170.06]
[1752700893402,9.0755,175.19,175.18,170.06]
[1752700897806,5.7059,175.18,175.17,6.806e-05]
[1752700898108,5.7059,175.18,175.11,0.05]
[1752700898109,3.37,175.18,175.11,174.15524777]
[1752700898302,5.7077,175.13,175.11,174.15524777]
[1752700898502,3.37,175.13,175.12,0.05]
[1752700899211,9.0775,175.13,175.12,0.05]
[1752700900500,5.7078,175.12,175.11,174.10524777]
[1752700900709,9.0778,175.12,175.11,174.10524777]
[1752700902715,9.0778,175.12,175.11,4.10524777]
[1752700902915,9.0778,175.12,175.11,174.06524777]
[1752700903212,9.0778,175.12,175.11,169.96]
[1752700908112,5.7076,175.13,175.12,0.05]
[1752700908415,3.37,175.13,175.12,4.10524777]
[1752700909114,0.03903019,175.14,175.11,169.96]
[1752700909320,0.03903019,175.14,175.12,4.10524777]
[1752700909615,0.03903019,175.14,175.13,169.94]
[1752700909821,9.11623019,175.14,175.13,169.94]
[1752700910313,3.37,175.13,175.12,4.10524777]
[1752700910518,3.37,175.13,175.12,174.04524777]
[1752700911119,3.37,175.13,175.12,4.10524777]
[1752700911320,3.37,175.13,175.12,174.02524777]
[1752700912118,9.0775,175.13,175.12,174.02524777]
[1752700912523,9.0775,175.13,175.12,174.07524777]
[1752700912720,9.0775,175.13,175.12,174.02524777]
[1752700915026,5.7081,175.11,175.1,4.10524777]
[1752700915218,9.0781,175.11,175.1,174.00524777]
[1752700916018,9.0781,175.11,175.1,4.10524777]
[1752700916216,5.7085,175.1,175.07,0.05]
[1752700916423,5.7085,175.1,175.05,244.71]
[1752700916424,3.37,175.07,174.88,0.05]
[1752700916629,3.37,174.95,174.87,2.59446615]
[1752700916925,17.11,175.1,174.88,169.88]
[1752700916926,3.37,174.93,174.88,169.88]
[1752700917129,3.37,174.93,174.89,2.54446615]
[1752700917433,3.37,174.89,174.86,0.05]
[1752700917622,3.37,174.9,174.87,0.05]
[1752700917923,0.0416819,174.92,174.87,0.05]
[1752700917924,3.37,174.89,174.87,0.05]
[1752700918126,4.10848528,174.94,174.87,169.86]
[1752700918423,3.37,174.88,174.87,169.86]
[1752700919125,3.37,174.88,174.85,0.05]
[1752700919322,3.37,174.89,174.77,0.05]
[1752700919520,9.0869,174.84,174.81,0.05]
[1752700919922,9.0869,174.84,174.82,169.95]
[1752700920227,9.12297875,174.84,174.82,169.95]
[1752700920619,9.12297875,174.84,174.83,169.9]
[1752700920819,9.12297875,174.84,174.82,0.05]
[1752700921018,9.12297875,174.84,174.83,169.9]
[1752700921625,9.12297875,174.84,174.82,0.05]
[1752700921824,9.12297875,174.84,174.83,169.96]
[1752700922018,5.7173,174.83,174.82,0.05]
[1752700922330,5.7173,174.83,174.82,169.96]
[1752700922331,3.37,174.83,174.82,169.96]
[1752700922720,5.7186,174.79,174.78,0.05]
[1752700922927,3.37,174.8,174.76,493.05]
[1752700923124,3.37,174.8,174.77,170.01]
[1752700923325,5.7186,174.79,174.78,169.96]
[1752700923524,0.03682549,174.8,174.77,169.96]
[1752700923927,5.7186,174.79,174.78,0.05]
[1752700924130,3.30682549,174.8,174.77,169.96]
[1752700924431,3.27,174.79,174.77,0.05]
[1752700924618,0.03682549,174.8,174.78,170.02]
[1752700925224,3.27,174.79,174.76,0.05]
[1752700925424,3.27,174.79,174.77,170.02]
[1752700925725,8.9886,174.79,174.78,170.02]
[1752700926025,3.27,174.85,174.79,0.05]
[1752700926232,9.37630637,174.85,174.75,6.10630637]
[1752700926525,6.10630637,174.9,174.75,6.10630637]
[1752700926526,6.10630637,174.83,174.75,0.05]
[1752700926831,5.7192,174.77,174.76,170.02]
[1752700927028,5.7192,174.77,174.76,170.07]
[1752700928132,5.7192,174.77,174.76,170.02]
[1752700928534,5.7196,174.76,174.75,0.08623313]
[1752700928723,5.7196,174.76,174.75,170.14623313]
[1752700929132,5.7196,174.76,174.75,176.2525395]
[1752700931224,3.27,174.86,174.76,0.05]
[1752700931422,3.27,174.84,174.75,170.09623313]
[1752700931625,3.27,174.84,174.75,170.06]
[1752700931831,5.7196,174.76,174.75,170.11]
[1752700935336,5.7196,174.76,174.75,176.21630637]
[1752700936334,3.27,174.78,174.75,176.21630637]
[1752700936835,8.9895,174.77,174.75,176.21630637]
[1752700939139,5.719,174.78,174.76,0.05]
[1752700939338,8.989,174.78,174.77,170.1]
[1752700940233,3.27,174.89,174.79,0.05]
[1752700940433,3.27,174.96,174.87,6.10630637]
[1752700940635,5.7153,174.89,174.88,170.12]
[1752700940944,8.9853,174.89,174.88,170.12]
[1752700941238,3.27,174.89,174.88,170.12]
[1752700941946,8.9853,174.89,174.88,170.12]
[1752700942241,3.27,174.99,174.88,170.12]
[1752700942440,5.7145,174.92,174.9,6.10630637]
[1752700942638,8.9845,174.92,174.9,6.10630637]
[1752700942837,3.27,174.91,174.9,6.10630637]
[1752700943234,493.9,175.02,174.89,0.03637679]
[1752700943444,3.27,174.97,174.9,170.08]
[1752700944048,3.27,174.97,174.92,0.04130188]
[1752700944941,8.984,174.93,174.92,1.88e-06]
[1752700945147,3.27,174.93,174.89,170.08]
[1752700945750,5.715,174.9,174.89,170.08]
[1752700945948,8.985,174.9,174.89,170.08]
[1752700948761,3.27,174.9,174.89,176.18630637]
[1752700949049,3.27,174.95,174.9,0.05]
[1752700949252,3.27,174.95,174.94,6.10630637]
[1752700949460,8.9833,174.95,174.94,170.02]
[1752700949659,3.27,174.95,174.94,170.02]
[1752700949961,8.9833,174.95,174.94,170.02]
[1752700960761,5.7137,174.94,174.93,0.03679747]
[1752700960955,9.0637,174.94,174.93,0.03679747]
[1752700961954,3.35,174.94,174.84,732.84]
[1752700962163,3.35,174.92,174.84,493.84]
[1752700962349,3.35,174.9,174.85,169.9]
[1752700962660,9.0663,174.86,174.85,169.9]
[1752700962860,3.35,174.85,174.83,4.16467012]
[1752700963053,3.35,174.85,174.83,169.95]
[1752700963360,9.0669,174.85,174.83,169.95]
[1752700963960,0.04061614,174.86,174.85,0.05]
[1752700965162,5.75691614,174.86,174.85,0.05]
[1752700965567,3.39061614,174.86,174.84,6.10142726]
[1752700965864,3.39061614,174.86,174.84,6.15142726]
[1752700966065,5.7166,174.85,174.84,6.15142726]
[1752700967259,9.0666,174.85,174.84,6.10142726]
[1752700970468,5.7166,174.85,174.84,6.15142726]
[1752700970664,9.0669,174.84,174.83,176.00142726]
[1752700970870,9.0669,174.84,174.83,169.9]
[1752700972662,5.7176,174.82,174.81,6.10142726]
[1752700972858,5.7176,174.82,174.81,176.03142726]
[1752700973964,5.7174,174.83,174.81,176.03142726]
[1752700974169,5.7174,174.83,174.82,6.15142726]
[1752700975667,5.7174,174.83,174.82,0.05]
[1752700975869,5.7174,174.83,174.82,6.15142726]
[1752700976464,9.0674,174.83,174.82,6.15142726]
[1752700977866,5.7174,174.83,174.82,6.15142726]
[1752700978265,9.0674,174.83,174.82,6.15142726]
[1752700978466,9.0674,174.83,174.82,6.10142726]
[1752700979971,9.0674,174.83,174.82,175.96142726]
[1752700980871,9.0674,174.83,174.82,176.02142726]
[1752700981176,3.35,174.83,174.8,0.06]
[1752700981365,3.35,174.83,174.81,169.86]
[1752700981878,9.0676,174.82,174.81,169.86]
[1752700982272,9.0676,174.82,174.81,169.92]
[1752700982573,9.0676,174.82,174.81,176.02142726]
[1752700982574,5.7176,174.82,174.81,176.02142726]
[1752700983173,8.9274,174.83,174.82,0.06]
[1752700983372,8.9274,174.83,174.82,6.16142726]
[1752700983776,8.9281,174.81,174.8,0.06]
[1752700984075,8.9281,174.81,174.8,169.9]
[1752700984675,8.9281,174.81,174.8,169.84]
[1752700985179,8.9281,174.81,174.8,173.95968754]
[1752700986287,0.04319466,174.82,174.8,173.95968754]
[1752700986475,0.04319466,174.82,174.8,174.01968754]
[1752700986476,3.25319466,174.82,174.8,174.01968754]
[1752700987281,8.97079466,174.82,174.81,0.06]
[1752700988080,3.25319466,174.82,174.81,0.06]
[1752700988870,3.25319466,174.82,174.8,173.95968754]
[1752700989075,8.97079466,174.82,174.8,174.01968754]
[1752700991082,3.25319466,174.82,174.8,179.73788754]
[1752700991285,3.25319466,174.82,174.81,0.06]
[1752700993180,8.97079466,174.82,174.81,0.06]
[1752700993376,8.97079466,174.82,174.8,173.95968754]
[1752700993576,8.97079466,174.82,174.8,174.01968754]
[1752700994385,3.25319466,174.82,174.8,174.01968754]
[1752700994686,3.21,174.81,174.8,174.01968754]
[1752700995887,3.21,174.81,174.8,173.95968754]
[1752700997181,3.21,174.81,174.8,179.67798754]
[1752700997387,3.21,174.81,174.8,179.73798754]
[1752700997990,0.04319466,174.82,174.8,179.67798754]
[1752700998192,0.04319466,174.82,174.81,3.27]
[1752700999191,5.76079466,174.82,174.81,3.27]
[1752700999990,0.04319466,174.82,174.81,3.27]
[1752701001083,3.21,174.83,174.82,3.27]